Workbook

Sheet Sheet1
A1: Download Internet Files Automatically
B3: Save To Folder
B4: C:\Users\Mahesh Mahala\Documents
B7: No. | C7: File URL | D7: Result
B8: 1 | C8: http://eronet.ecinet.in/FormProcess/GenerateCheckList?refNo=EQJ258897636&formType=form7 | D8: OK
B9: 2
B10: 3
B11: 4
B12: 5
B13: 6
B14: 7
B15: 8
B16: 9
B17: 10
B18: 11
B19: 12
B20: 13
B21: 14
B22: 15
B23: 16
B24: 17
B25: 18
B26: 19
B27: 20
B28: 21
B29: 22
B30: 23
B31: 24
B32: 25
B33: 26
B34: 27
B35: 28
B36: 29
B37: 30
B38: 31
B39: 32
B40: 33
B41: 34
B42: 35
B43: 36
B44: 37
B45: 38
B46: 39
B47: 40
B48: 41
B49: 42
B50: 43
B51: 44
B52: 45
B53: 46
B54: 47
B55: 48
B56: 49
B57: 50
B58: 51
B59: 52
B60: 53
B61: 54
B62: 55
B63: 56
B64: 57
B65: 58
B66: 59
B67: 60
B68: 61
B69: 62
B70: 63
B71: 64
B72: 65
B73: 66
B74: 67
B75: 68
B76: 69
B77: 70
B78: 71
B79: 72
B80: 73
B81: 74
B82: 75
B83: 76
B84: 77
B85: 78
B86: 79
B87: 80
B88: 81
B89: 82
B90: 83
B91: 84
B92: 85
B93: 86
B94: 87
B95: 88
B96: 89
B97: 90
B98: 91
B99: 92
B100: 93
B101: 94
B102: 95
B103: 96
B104: 97
B105: 98
B106: 99
B107: 100
B108: 101
B109: 102
B110: 103
B111: 104
B112: 105
B113: 106
B114: 107
B115: 108
B116: 109
B117: 110
B118: 111
B119: 112
B120: 113
B121: 114
B122: 115
B123: 116
B124: 117
B125: 118
B126: 119
B127: 120
B128: 121
B129: 122
B130: 123
B131: 124
B132: 125
B133: 126
B134: 127
B135: 128
B136: 129
B137: 130
B138: 131
B139: 132
B140: 133
B141: 134
B142: 135
B143: 136
B144: 137
B145: 138
B146: 139
B147: 140
B148: 141
B149: 142
B150: 143
B151: 144
B152: 145
B153: 146
B154: 147
B155: 148
B156: 149
B157: 150
B158: 151
B159: 152
B160: 153
B161: 154
B162: 155
B163: 156
B164: 157
B165: 158
B166: 159
B167: 160
B168: 161
B169: 162
B170: 163
B171: 164
B172: 165
B173: 166
B174: 167
B175: 168
B176: 169
B177: 170
B178: 171
B179: 172
B180: 173
B181: 174
B182: 175
B183: 176
B184: 177
B185: 178
B186: 179
B187: 180
B188: 181
B189: 182
B190: 183
B191: 184
B192: 185
B193: 186
B194: 187
B195: 188
B196: 189
B197: 190
B198: 191
B199: 192
B200: 193
B201: 194
B202: 195
B203: 196
... 1552 more rows
